[Event "German Championship Women 2022"]
[Site "Magdeburg"]
[Date "2022.08.18"]
[Round "7.1"]
[White "Muetsch, Annmarie"]
[Black "Schulze, Lara"]
[Result "1/2-1/2"]
[ECO "B31"]
[WhiteElo "2249"]
[BlackElo "2292"]
[Annotator "TA"]
[PlyCount "171"]
[EventDate "2022.08.14"]
[EventType "swiss"]
[EventCountry "GER"]
[SourceTitle "playchess.com"]
[Source "ChessBase"]
[SourceQuality "1"]
[TimeControl "40/5400+30:1800+30"]

{[%evp 9,171,33,33,26,33,33,34,18,24,0,-7,0,0,-47,-57,-37,-38,-51,-53,-39,-44,-81,-41,-93,-81,-94,-60,-85,-81,-91,-82,-118,-83,-86,-76,-94,-83,-91,-86,-143,-127,-135,-115,-120,-80,-117,-95,-109,-22,-118,-133,-119,-122,-129,-108,-190,-180,-179,-158,-388,-397,-636,-618,-1376,-1373,-1850,-1800,-1658,-1581,-1442,-869,-768,-975,-972,-958,-925,-544,-522,-528,-497,-227,-234,-225,-277,-279,-293,-289,-335,-335,-334,-325,-334,-334,-308,-308,-450,-368,-368,-368,-330,-321,-295,-306,-29978,-29978,-29978,-29979,-29974,-8,-8,-8,-8,-8,-8,-8,-8,-8,-8,-8,-8,-8,-8,-8,-8,-8,-8,-8,-8,-8,-8,-8,-8,-8,-8,-8,-8,-8,-8,-8,-8,0,0,0,0,0,0,0,0,0,0,0,0,0,0,0,0,0,0,0,0,0,0,0,0]} 1. e4 {[%emt 0:00:09]} c5 {[%emt 0:00:12]} 2. Nf3 {[%emt 0:00:19]} Nc6 {[%emt 0:00:06]} 3. Bb5 {[%emt 0:00:19]} g6 {[%emt 0:00:07]} 4. Bxc6 {[%emt 0:00:11]} bxc6 {[%emt 0:00:07]} 5. d4 {[%emt 0:00:24]} Bg7 {[%emt 0:00:39]} 6. dxc5 {[%emt 0:00:10] B31: Sicilian: 2...Nc6 3 Bb5 g6.} Qa5+ {[%emt 0:01:10]} 7. Nbd2 {[%emt 0:00:34]} Nf6 {[%emt 0:00:58]} 8. O-O {[%emt 0:01:07] White is slightly better.} Qxc5 {[%emt 0:01:23]} 9. h3 {[%emt 0:06:31]} d6 {[%emt 0:09:13] [#] Prevents e5.} 10. Re1 $146 {[%emt 0:01:33]} ({Predecessor:} 10. c4 O-O 11. Rb1 Qa5 12. a3 c5 13. b4 Qc7 14. Bb2 Bb7 15. Re1 Rfd8 16. b5 {1-0 (34) Nevednichy,V (2531)-Toczek,G (2271) Chess.com INT 2020}) 10... Nd7 {[%emt 0:06:53] Inhibits e5.} 11. c3 {[%emt 0:04:54]} (11. Rb1 $11) 11... O-O $15 {[%emt 0:02:56]} 12. Nb3 {[%emt 0:02:28]} Qb6 {[%emt 0:04:20]} 13. Bg5 {[%emt 0:12:44]} Re8 {[%emt 0:01:56]} 14. Qc1 {[%emt 0:02:12]} a5 {[%emt 0:03:59][%cal Ba7a5,Ba5a4][%mdl 32]} 15. Nbd4 {[%emt 0:16:57]} a4 {[%emt 0:06:44]} 16. Rb1 {[%emt 0:03:14]} (16. Bh6 $15) 16... Nc5 $17 {[%emt 0:03:37]} 17. Qd2 {[%emt 0:04:42] Against Nd3} Qc7 {[%emt 0:08:56]} 18. Nh2 {[%emt 0:06:02]} e5 {[%emt 0:04:09]} 19. Nc2 {[%emt 0:01:45]} f5 {[%emt 0:02:27]} 20. f3 {[%emt 0:03:06]} Be6 {[%emt 0:05:30]} 21. Nb4 {[%emt 0:00:34]} Na6 {[%emt 0:02:55]} 22. a3 {[%emt 0:03:15]} Nc5 {[%emt 0:01:58]} 23. Rbd1 {[%emt 0:00:49]} Bf8 {[%emt 0:00:46]} 24. Qe2 {[%emt 0:01:58]} ({White should play} 24. exf5 gxf5 25. Bh6) 24... Bb3 {[%emt 0:06:15]} 25. Rd2 {[%emt 0:01:29]} h6 {[%emt 0:02:17]} 26. Bh4 {[%emt 0:00:48]} Ne6 {[%emt 0:02:10]} 27. exf5 {[%emt 0:03:23]} gxf5 {[%emt 0:03:07][%cal Bg6f5,Bf5e4,Be4e3,Be3d2][%mdl 32]} 28. Qd3 {[%emt 0:00:12]} Ng7 {[%emt 0:02:32]} (28... Qf7 $1 $17 {Strongly threatening ...Nf4.} 29. g4 (29. Nxc6 Nf4 $17) 29... fxg4 30. hxg4 Nf4) 29. Bf6 {[%emt 0:03:32] [#]} (29. g4 $1 $11 {keeps the balance.}) 29... d5 $1 {[%emt 0:05:06]} 30. Bxg7 {[%emt 0:05:41]} e4 $36 {[%emt 0:01:42][%mdl 2048] Black is on the roll.} (30... Qxg7 31. Qxf5 Qf7 32. Qxf7+ (32. Rxe5 Bc5+ 33. Rd4 Qxf5 $11) 32... Kxf7 33. Nxc6 $16) 31. fxe4 {[%emt 0:00:04]} fxe4 {[%emt 0:01:18]} ({Resist} 31... Kxg7 32. e5 $18 (32. Qd4+ Kh7 $11)) 32. Qf1 {[%emt 0:00:42]} Bxg7 $19 {[%emt 0:02:02]} 33. Qf5 {[%emt 0:00:15]} Qg3 {[%emt 0:04:00] Against Qg6} 34. Rf1 {[%emt 0:02:56]} (34. Rf2 $17) 34... Bc4 {[%emt 0:01:59] White must now prevent ...Rf8.} ({Don't blunder} 34... Rf8 $2 35. Qe6+ Kh8 36. Rdf2 $19) 35. Nxc6 $2 {[%emt 0:08:09]} (35. Rdf2 Qd6 36. Qg4 Bxf1 37. Nxf1) 35... e3 {[%emt 0:00:59]} 36. Qf7+ {[%emt 0:01:29]} Kh8 {[%emt 0:00:19]} 37. Ne7 {[%emt 0:00:49]} Rxe7 {[%emt 0:01:41]} 38. Qxe7 {[%emt 0:00:07]} exd2 {[%emt 0:00:27]} 39. Rd1 {[%emt 0:00:35]} Qf4 {[%emt 0:01:15]} 40. Nf3 {[%emt 0:00:23]} Bf8 {[%emt 0:01:06]} 41. Qe6 {[%emt 0:31:57]} Bc5+ {[%emt 0:06:34]} 42. Kh1 {[%emt 0:00:00]} Qd6 {[%emt 0:07:58]} 43. Qxd6 {[%emt 0:00:00]} Bxd6 {[%emt 0:01:57]} 44. Nxd2 {[%emt 0:00:00]} Bf4 {[%emt 0:02:53]} (44... Be2 $142 45. Re1 Re8) 45. Nxc4 {[%emt 0:00:00]} dxc4 {[%emt 0:00:03][%mdl 4096] Endgame KRB-KR} 46. g3 {[%emt 0:00:00]} Bxg3 {[%emt 0:04:32]} 47. Rd4 {[%emt 0:00:00]} Rc8 {[%emt 0:01:06]} 48. Kg2 {[%emt 0:00:00]} Be5 {[%emt 0:00:47]} 49. Rd5 {[%emt 0:00:00]} Bf4 {[%emt 0:00:15]} 50. Kf3 {[%emt 0:00:00]} Bc1 {[%emt 0:02:15]} 51. Rb5 {[%emt 0:00:00]} Kg7 {[%emt 0:00:20]} 52. h4 {[%emt 0:00:00]} (52. Rb4 {was worth a try.}) 52... Kf6 {[%emt 0:01:28]} 53. Ke4 {[%emt 0:00:00]} Re8+ {[%emt 0:04:26]} 54. Kd4 {[%emt 0:00:00]} Re2 {[%emt 0:00:18]} 55. Kxc4 {[%emt 0:00:00]} Rxb2 {[%emt 0:00:37]} 56. Rxb2 {[%emt 0:00:00]} (56. Rb4 $19) 56... Bxb2 {[%emt 0:00:01] KB-K3P} 57. Kb4 {[%emt 0:00:00]} Kf5 {[%emt 0:00:19]} 58. c4 {[%emt 0:00:00]} Kg4 $2 {[%emt 0:03:17]} (58... h5 {mates} 59. Kxa4 Bf6 60. Kb3 Bxh4 61. Kb4 Bd8 62. Kc5 h4 63. Kd6 h3 64. Kd7 Ba5 65. Kc6 h2 66. c5 h1=Q+ 67. Kb5 {[#]} Ke6 $1 68. Kxa5 Qb1 69. Ka6 Kd5 70. Ka7 Kxc5 71. Ka8 Kc6 72. Ka7 Qb7#) 59. c5 $11 {[%emt 0:00:00] The position is equal.} Kxh4 {[%emt 0:00:16] KB-KPP} 60. c6 {[%emt 0:00:00] Hoping for c7.} Be5 {[%emt 0:00:04]} 61. Kxa4 {[%emt 0:00:00]} Kg5 {[%emt 0:01:17]} 62. Kb5 {[%emt 0:00:00]} h5 {[%emt 0:00:48]} 63. a4 $1 {[%emt 0:00:00]} h4 {[%emt 0:00:13]} 64. a5 {[%emt 0:00:00]} h3 {[%emt 0:00:16]} 65. a6 {[%emt 0:00:00]} h2 {[%emt 0:00:32]} (65... Bb8 $2 66. c7 h2 67. cxb8=Q $18) 66. a7 {[%emt 0:00:00]} h1=Q {[%emt 0:00:14]} 67. a8=Q {[%emt 0:00:00]} Qd5+ {[%emt 0:00:24]} 68. Ka6 {[%emt 0:00:00]} Qa2+ {[%emt 0:01:07]} 69. Kb7 {[%emt 0:00:00]} Qb3+ {[%emt 0:00:12]} 70. Kc8 {[%emt 0:00:00]} Kf6 {[%emt 0:00:38]} 71. Qa7 $1 {[%emt 0:01:17]} Qg8+ {[%emt 0:00:38]} 72. Kb7 {[%emt 0:00:15]} Qf7+ {[%emt 0:00:24]} 73. Ka6 {[%emt 0:00:16]} Qc4+ {[%emt 0:00:15]} 74. Kb7 {[%emt 0:00:20]} Bd4 {[%emt 0:01:04]} 75. Qxd4+ {[%emt 0:04:43]} Qxd4 {[%emt 0:00:02]} 76. c7 {[%emt 0:00:08]} Qb4+ {[%emt 0:00:20]} 77. Ka8 {[%emt 0:00:11]} Qa5+ {[%emt 0:00:35]} 78. Kb8 {[%emt 0:00:17]} Qb6+ {[%emt 0:00:47]} 79. Ka8 {[%emt 0:00:06]} Qc6+ {[%emt 0:00:35]} 80. Kb8 {[%emt 0:00:06]} Qd6 {[%emt 0:00:46]} 81. Kb7 {[%emt 0:00:18]} Qd7 {[%emt 0:00:30] ( -> ...Ke6)} 82. Kb8 {[%emt 0:00:09]} Qb5+ {[%emt 0:00:35]} 83. Ka8 {[%emt 0:00:27]} Qa6+ {[%emt 0:00:32]} 84. Kb8 {[%emt 0:00:05]} Ke7 {[%emt 0:00:23]} 85. c8=Q {[%emt 0:00:10]} Qxc8+ {[%emt 0:00:06]} 86. Kxc8 {[%emt 0:00:04] And White is the lucky defender.  Weighted Error Value: White=0.53/Black=0.27 (precise)} 1/2-1/2

[Event "German Championship Women 2022"]
[Site "Magdeburg"]
[Date "2022.08.18"]
[Round "7.2"]
[White "Braun, Kristin"]
[Black "Voicu-Jagodzinsky, Carmen"]
[Result "0-1"]
[ECO "C01"]
[WhiteElo "1897"]
[BlackElo "2258"]
[Annotator "NA RC"]
[PlyCount "84"]
[EventDate "2022.08.14"]
[EventType "swiss"]
[EventCountry "GER"]
[SourceTitle "playchess.com"]
[Source "ChessBase"]
[SourceQuality "1"]
[TimeControl "40/5400+30:1800+30"]

1. e4 {[%emt 0:00:01]} e6 {[%emt 0:00:05]} 2. d4 {[%emt 0:00:05]} d5 {[%emt 0:00:05]} 3. exd5 {[%emt 0:00:03]} exd5 {[%emt 0:00:05]} 4. Nf3 {[%emt 0:00:04]} Nf6 {[%emt 0:00:22]} 5. c4 {[%emt 0:00:04]} Bb4+ {[%emt 0:00:44]} 6. Nc3 {[%emt 0:01:15]} O-O {[%emt 0:00:35]} 7. Be2 {[%emt 0:01:12]} Nc6 {[%emt 0:00:42]} 8. h3 {[%emt 0:01:43]} dxc4 {[%emt 0:00:15]} 9. Bxc4 {[%emt 0:00:24]} Qe7+ {[%emt 0:02:35]} 10. Be3 {[%emt 0:00:49]} Na5 {[%emt 0:00:56]} 11. Bd3 {[%emt 0:09:59]} Nd5 {[%emt 0:01:13]} 12. Qd2 {[%emt 0:15:33]} f5 {[%emt 0:04:19]} 13. O-O {[%emt 0:04:15]} Bxc3 {[%emt 0:10:41]} 14. bxc3 {[%emt 0:02:40]} f4 {[%emt 0:00:58]} 15. c4 {[%emt 0:01:16]} fxe3 {[%emt 0:23:39]} 16. Qxa5 {[%emt 0:03:55]} Nf4 {[%emt 0:00:21]} 17. Qe5 {[%emt 0:04:47]} Qxe5 {[%emt 0:08:33]} 18. Nxe5 {[%emt 0:01:17]} exf2+ {[%emt 0:00:56]} 19. Rxf2 {[%emt 0:00:41]} Bxh3 {[%emt 0:04:40]} 20. Be4 {[%emt 0:07:38]} Rad8 {[%emt 0:04:39]} 21. Raf1 {[%emt 0:09:37]} g5 {[%emt 0:00:35]} 22. Bxb7 {[%emt 0:13:21]} Bf5 {[%emt 0:06:28]} 23. Rd2 {[%emt 0:02:38]} Rxd4 {[%emt 0:02:30]} 24. Rxd4 {[%emt 0:06:41]} Ne2+ {[%emt 0:00:05]} 25. Kh2 {[%emt 0:00:36]} Nxd4 {[%emt 0:00:09]} 26. Rd1 {[%emt 0:00:46]} c5 {[%emt 0:00:43]} 27. Rf1 {[%emt 0:02:37]} Be6 {[%emt 0:03:27]} 28. Re1 {[%emt 0:04:39]} Rb8 {[%emt 0:08:24]} 29. Nc6 {[%emt 0:02:31]} Rxb7 {[%emt 0:01:38]} 30. Nxd4 {[%emt 0:00:11]} Bxc4 {[%emt 0:00:14]} 31. Re8+ {[%emt 0:01:22]} Kf7 {[%emt 0:01:16]} 32. Rc8 {[%emt 0:02:04]} cxd4 {[%emt 0:00:11]} 33. Rxc4 {[%emt 0:00:01]} Rd7 {[%emt 0:00:06]} 34. Kg3 {[%emt 0:00:41]} d3 {[%emt 0:00:40]} 35. Rc1 {[%emt 0:00:01]} d2 {[%emt 0:00:15]} 36. Rd1 {[%emt 0:00:06]} Kf6 {[%emt 0:00:15]} 37. Kf3 {[%emt 0:00:25]} h5 {[%emt 0:02:08]} 38. Ke4 {[%emt 0:00:37]} h4 {[%emt 0:00:39]} 39. Kf3 {[%emt 0:01:00]} Kf5 {[%emt 0:00:23]} 40. Kf2 {[%emt 0:00:32]} Kf4 {[%emt 0:00:41]} 41. a4 {[%emt 0:30:54]} a5 {[%emt 0:30:31]} 42. Kf1 {[%emt 0:00:34]} Ke3 {[%emt 0:00:11]} 0-1

[Event "German Championship Women 2022"]
[Site "Magdeburg"]
[Date "2022.08.18"]
[Round "7.3"]
[White "Falke, Ornella"]
[Black "Kunze, Kerstin"]
[Result "1/2-1/2"]
[ECO "D37"]
[WhiteElo "1912"]
[BlackElo "2020"]
[Annotator "NA RC"]
[PlyCount "94"]
[EventDate "2022.08.14"]
[EventType "swiss"]
[EventCountry "GER"]
[SourceTitle "playchess.com"]
[Source "ChessBase"]
[SourceQuality "1"]
[TimeControl "40/5400+30:1800+30"]

1. d4 {[%emt 0:00:03]} Nf6 {[%emt 0:00:40]} 2. c4 {[%emt 0:00:07]} e6 {[%emt 0:00:41]} 3. Nf3 {[%emt 0:00:37]} d5 {[%emt 0:00:24]} 4. Nc3 {[%emt 0:00:15]} Be7 {[%emt 0:00:43]} 5. cxd5 {[%emt 0:00:29]} exd5 {[%emt 0:00:28]} 6. Bf4 {[%emt 0:01:23]} O-O {[%emt 0:04:37]} 7. e3 {[%emt 0:00:20]} h6 {[%emt 0:07:02]} 8. Bd3 {[%emt 0:00:30]} Re8 {[%emt 0:10:28]} 9. Qc2 {[%emt 0:02:09]} a6 {[%emt 0:22:26]} 10. h3 {[%emt 0:01:47]} Nc6 {[%emt 0:03:05]} 11. a3 {[%emt 0:01:34]} Bd6 {[%emt 0:00:10]} 12. Bxd6 {[%emt 0:00:50]} Qxd6 {[%emt 0:00:05]} 13. O-O {[%emt 0:00:53]} Bd7 {[%emt 0:02:41]} 14. b4 {[%emt 0:00:42]} b5 {[%emt 0:06:11]} 15. Rac1 {[%emt 0:07:19]} Re7 {[%emt 0:06:57]} 16. Nd2 {[%emt 0:07:17]} Na7 {[%emt 0:02:29]} 17. Nb3 {[%emt 0:05:34]} Nc8 {[%emt 0:00:56]} 18. Ne2 {[%emt 0:06:41]} Ra7 {[%emt 0:06:53]} 19. Nc5 {[%emt 0:04:21]} Nb6 {[%emt 0:01:07]} 20. Nc3 {[%emt 0:13:14]} c6 {[%emt 0:08:09]} 21. Rfe1 {[%emt 0:03:10]} Ra8 {[%emt 0:04:44]} 22. Rcd1 {[%emt 0:00:39]} Be8 {[%emt 0:05:54]} 23. f3 {[%emt 0:01:57]} a5 {[%emt 0:01:30]} 24. Qb2 {[%emt 0:10:13]} axb4 {[%emt 0:00:36]} 25. axb4 {[%emt 0:00:03]} Qg3 {[%emt 0:02:19]} 26. e4 {[%emt 0:02:29]} Nh5 {[%emt 0:00:23]} 27. Ne2 {[%emt 0:02:44]} Qg5 {[%emt 0:00:05]} 28. Nb3 {[%emt 0:03:16]} Nc4 {[%emt 0:00:45]} 29. Bxc4 {[%emt 0:02:07]} bxc4 {[%emt 0:00:02]} 30. Nc5 {[%emt 0:01:24]} Qe3+ {[%emt 0:00:51]} 31. Kh2 {[%emt 0:02:49]} Rea7 {[%emt 0:00:33]} 32. Qc3 {[%emt 0:02:28]} Qg5 {[%emt 0:00:43]} 33. Qd2 {[%emt 0:03:42]} Qh4 {[%emt 0:00:15]} 34. g3 {[%emt 0:01:20]} Nxg3 {[%emt 0:00:03]} 35. Qf4 {[%emt 0:00:48]} Nf5 {[%emt 0:01:25]} 36. exf5 {[%emt 0:02:36]} Qf2+ {[%emt 0:00:08]} 37. Kh1 {[%emt 0:00:07]} Ra2 {[%emt 0:00:17]} 38. Qh2 {[%emt 0:01:35]} Qxf3+ {[%emt 0:00:03]} 39. Qg2 {[%emt 0:00:03]} Qxf5 {[%emt 0:00:44]} 40. Ng3 {[%emt 0:05:07]} Qc8 {[%emt 0:00:55]} 41. Re2 {[%emt 0:35:03]} Rxe2 {[%emt 0:31:14]} 42. Nxe2 {[%emt 0:00:04]} Ra3 {[%emt 0:00:00]} 43. Nf4 {[%emt 0:00:00]} Qf5 {[%emt 0:00:00]} 44. Rf1 {[%emt 0:00:00]} Rc3 45. Qe2 Bd7 46. Nfe6 Be8 47. Nf4 Bd7 1/2-1/2

[Event "German Championship Women 2022"]
[Site "Magdeburg"]
[Date "2022.08.18"]
[Round "7.4"]
[White "Moenster, Madita"]
[Black "Birkholz, Olga"]
[Result "1-0"]
[ECO "B10"]
[WhiteElo "1864"]
[BlackElo "2002"]
[Annotator "NA RC"]
[PlyCount "86"]
[EventDate "2022.08.14"]
[EventType "swiss"]
[EventCountry "GER"]
[SourceTitle "playchess.com"]
[Source "ChessBase"]
[SourceQuality "1"]
[TimeControl "40/5400+30:1800+30"]

1. e4 c6 2. Nf3 d6 3. d4 g6 4. Bd3 Bg7 5. O-O Nf6 6. Qe2 O-O 7. c3 Qc7 8. e5 Nd5 9. Re1 Bg4 10. exd6 exd6 11. h3 Bd7 12. Bd2 a5 13. Na3 Na6 14. Qd1 b5 15. Nc2 Rfe8 16. Ng5 Rxe1+ 17. Qxe1 Re8 18. Qd1 h6 19. Ne4 c5 20. dxc5 Nxc5 21. Nxc5 dxc5 22. Qf3 c4 23. Bxg6 fxg6 24. Qxd5+ Kh7 25. Nd4 Rd8 26. Qf3 Rf8 27. Qe2 Re8 28. Be3 Bxd4 29. cxd4 Bf5 30. Qd2 h5 31. Bf4 Qd8 32. Rd1 Bd3 33. Be5 Rf8 34. Re1 Rf7 35. Qe3 b4 36. a3 Qd5 37. axb4 axb4 38. Ra1 Qe4 39. Qg5 Qf5 40. Ra8 Qxf2+ 41. Kh2 Rg7 42. Rh8+ Kxh8 43. Qh6+ Kg8 1-0

[Event "German Championship Women 2022"]
[Site "Magdeburg"]
[Date "2022.08.18"]
[Round "7.5"]
[White "Bazzazi, Elnaz"]
[Black "Wartenberg, Alissa"]
[Result "1-0"]
[ECO "B40"]
[WhiteElo "1766"]
[BlackElo "1632"]
[Annotator "NA RC"]
[PlyCount "79"]
[EventDate "2022.08.14"]
[EventType "swiss"]
[EventCountry "GER"]
[SourceTitle "playchess.com"]
[Source "ChessBase"]
[SourceQuality "1"]
[TimeControl "40/5400+30:1800+30"]

1. e4 {[%emt 0:00:04]} c5 {[%emt 0:00:04]} 2. Nf3 {[%emt 0:00:05]} e6 {[%emt 0:00:05]} 3. d3 {[%emt 0:00:15]} d5 {[%emt 0:04:37]} 4. Nbd2 {[%emt 0:00:21]} Nc6 {[%emt 0:00:36]} 5. g3 {[%emt 0:00:06]} Nf6 {[%emt 0:01:02]} 6. Bg2 {[%emt 0:00:05]} Bd6 {[%emt 0:02:08]} 7. O-O {[%emt 0:00:06]} d4 {[%emt 0:03:13]} 8. Nc4 {[%emt 0:03:51]} e5 {[%emt 0:00:38]} 9. Nxd6+ {[%emt 0:00:37]} Qxd6 {[%emt 0:01:19]} 10. Ng5 {[%emt 0:01:06]} h6 {[%emt 0:01:11]} 11. Nh3 {[%emt 0:00:32]} g5 {[%emt 0:02:15]} 12. f4 {[%emt 0:03:11]} gxf4 {[%emt 0:03:55]} 13. gxf4 {[%emt 0:00:08]} Rg8 {[%emt 0:00:09]} 14. Kh1 {[%emt 0:01:21]} Ng4 {[%emt 0:04:02]} 15. Qe1 {[%emt 0:05:43]} Qg6 {[%emt 0:03:05]} 16. Rg1 {[%emt 0:04:36]} Nb4 {[%emt 0:05:08]} 17. Qe2 {[%emt 0:06:17]} Qh5 {[%emt 0:19:06]} 18. fxe5 {[%emt 0:17:47]} Nf2+ {[%emt 0:13:36]} 19. Qxf2 {[%emt 0:00:14]} Bxh3 {[%emt 0:00:08]} 20. Bf4 {[%emt 0:01:39]} Bxg2+ {[%emt 0:02:20]} 21. Rxg2 {[%emt 0:00:10]} Rxg2 {[%emt 0:00:09]} 22. Qxg2 {[%emt 0:00:23]} O-O-O {[%emt 0:05:30]} 23. Bg3 {[%emt 0:03:33]} Nc6 {[%emt 0:03:08]} 24. Rf1 {[%emt 0:06:04]} Rg8 {[%emt 0:07:32]} 25. Qf2 {[%emt 0:05:25]} Nxe5 {[%emt 0:07:51]} 26. Qf5+ {[%emt 0:00:20]} Qxf5 {[%emt 0:00:11]} 27. Rxf5 {[%emt 0:00:10]} Nd7 {[%emt 0:01:06]} 28. Rxf7 {[%emt 0:00:21]} b6 {[%emt 0:01:40]} 29. Rh7 {[%emt 0:09:19]} Rg6 {[%emt 0:00:57]} 30. Kg2 {[%emt 0:00:51]} Rf6 {[%emt 0:01:24]} 31. c3 {[%emt 0:00:59]} a5 {[%emt 0:01:16]} 32. cxd4 {[%emt 0:02:53]} cxd4 {[%emt 0:00:05]} 33. Bf2 {[%emt 0:03:19]} Rd6 {[%emt 0:00:34]} 34. Kf1 {[%emt 0:00:30]} Nc5 {[%emt 0:00:23]} 35. Ke2 {[%emt 0:00:59]} Na4 {[%emt 0:00:09]} 36. e5 {[%emt 0:03:00]} Rg6 {[%emt 0:04:27]} 37. Bxd4 {[%emt 0:01:24]} Rg2+ {[%emt 0:00:08]} 38. Ke3 {[%emt 0:03:53]} Rxh2 {[%emt 0:00:18]} 39. e6 {[%emt 0:02:40]} Rh3+ {[%emt 0:01:34]} 40. Kf4 {[%emt 0:08:23]} 1-0

[Event "German Championship Women 2022"]
[Site "Magdeburg"]
[Date "2022.08.18"]
[Round "7.6"]
[White "Fock, Sana"]
[Black "Halas, Julia"]
[Result "0-1"]
[ECO "C06"]
[WhiteElo "1807"]
[BlackElo "2012"]
[Annotator "NA RC"]
[PlyCount "107"]
[EventDate "2022.08.14"]
[EventType "swiss"]
[EventCountry "GER"]
[SourceTitle "playchess.com"]
[Source "ChessBase"]
[SourceQuality "1"]
[TimeControl "40/5400+30:1800+30"]

1. e4 {[%emt 0:00:02]} e6 {[%emt 0:00:04]} 2. d4 {[%emt 0:00:05]} d5 {[%emt 0:00:05]} 3. Nd2 {[%emt 0:00:06]} Nf6 {[%emt 0:00:05]} 4. e5 {[%emt 0:00:18]} Nfd7 {[%emt 0:00:05]} 5. Bd3 {[%emt 0:00:25]} c5 {[%emt 0:00:07]} 6. c3 {[%emt 0:00:05]} Nc6 {[%emt 0:00:09]} 7. Ne2 {[%emt 0:00:17]} cxd4 {[%emt 0:00:09]} 8. cxd4 {[%emt 0:00:07]} f6 {[%emt 0:00:04]} 9. exf6 {[%emt 0:00:26]} Nxf6 {[%emt 0:00:06]} 10. Nf3 {[%emt 0:00:10]} Bd6 {[%emt 0:00:21]} 11. O-O {[%emt 0:01:06]} Qc7 {[%emt 0:00:09]} 12. Bg5 {[%emt 0:00:33]} O-O {[%emt 0:00:24]} 13. Bh4 {[%emt 0:00:25]} Nh5 {[%emt 0:00:17]} 14. Qc2 {[%emt 0:01:08]} h6 {[%emt 0:00:28]} 15. Bh7+ {[%emt 0:00:32]} Kh8 {[%emt 0:00:06]} 16. Bg6 {[%emt 0:00:28]} Rxf3 {[%emt 0:00:20]} 17. Bxh5 {[%emt 0:00:58]} Rf5 {[%emt 0:00:19]} 18. Bg6 {[%emt 0:01:02]} Bxh2+ {[%emt 0:00:57]} 19. Kh1 {[%emt 0:00:13]} Bd6 {[%emt 0:00:40]} 20. Qd3 {[%emt 0:14:13]} Rf8 {[%emt 0:07:12]} 21. Rac1 {[%emt 0:08:28]} Bd7 {[%emt 0:15:36]} 22. f4 {[%emt 0:17:37]} Be8 {[%emt 0:14:04]} 23. Rf3 {[%emt 0:16:55]} Bxg6 {[%emt 0:29:25]} 24. Qxg6 {[%emt 0:00:21]} Qf7 {[%emt 0:03:19]} 25. Qxf7 {[%emt 0:10:06]} Rxf7 {[%emt 0:00:05]} 26. Rb3 {[%emt 0:04:27]} Raf8 {[%emt 0:05:56]} 27. Rf3 {[%emt 0:07:12]} Kg8 {[%emt 0:04:26]} 28. Rcf1 {[%emt 0:01:58]} Be7 {[%emt 0:07:29]} 29. Bxe7 {[%emt 0:02:16]} Rxe7 {[%emt 0:00:07]} 30. Re3 {[%emt 0:01:33]} g6 {[%emt 0:02:02]} 31. Kg1 {[%emt 0:01:16]} Kf7 {[%emt 0:00:43]} 32. Rh3 {[%emt 0:00:53]} h5 {[%emt 0:00:59]} 33. g4 {[%emt 0:01:55]} hxg4 {[%emt 0:01:54]} 34. Rg3 {[%emt 0:00:13]} Kf6 {[%emt 0:00:38]} 35. Rxg4 {[%emt 0:00:50]} Rh8 {[%emt 0:00:33]} 36. Rf2 {[%emt 0:02:03]} Reh7 {[%emt 0:01:00]} 37. Rfg2 {[%emt 0:00:12]} Rh1+ {[%emt 0:01:38]} 38. Kf2 {[%emt 0:00:05]} R8h6 {[%emt 0:01:18]} 39. R4g3 {[%emt 0:05:24]} Rd1 {[%emt 0:04:06]} 40. Rb3 {[%emt 0:02:46]} b6 {[%emt 0:02:02]} 41. Ra3 {[%emt 0:08:15]} Rhh1 {[%emt 0:03:18]} 42. Rag3 {[%emt 0:01:31]} Rhf1+ {[%emt 0:00:54]} 43. Ke3 {[%emt 0:00:15]} Ne7 {[%emt 0:00:11]} 44. Nc3 {[%emt 0:02:11]} Nf5+ {[%emt 0:00:09]} 45. Ke2 {[%emt 0:00:05]} Nxd4+ {[%emt 0:00:40]} 46. Ke3 {[%emt 0:00:18]} Nf5+ {[%emt 0:00:16]} 47. Ke2 {[%emt 0:00:06]} Nxg3+ {[%emt 0:00:53]} 48. Rxg3 {[%emt 0:00:09]} Rde1+ {[%emt 0:01:49]} 49. Kd2 {[%emt 0:00:54]} Rg1 {[%emt 0:01:06]} 50. Rh3 {[%emt 0:02:18]} Rh1 {[%emt 0:00:31]} 51. Rxh1 {[%emt 0:01:30]} Rxh1 {[%emt 0:00:06]} 52. Ne2 {[%emt 0:00:27]} Rh2 {[%emt 0:00:35]} 53. Kd3 {[%emt 0:00:20]} Rxe2 {[%emt 0:00:14]} 54. Kd4 0-1